bitfinex/quotes_BTCUSD_20240729
["timestamp","ask_amount","ask_price","bid_price","bid_amount"]
[1722262682937,0.0783,68991.0,68986.0,0.038]
[1722262683085,0.0773,68991.0,68986.0,0.024]
[1722262683506,0.07154355,68989.0,68986.0,0.024]
[1722262683712,0.575863,68987.0,68986.0,0.024]
[1722262683911,1.16769874,68987.0,68986.0,0.024]
[1722262684073,1.39579859,68987.0,68986.0,0.024]
[1722262684300,1.73570759,68987.0,68986.0,0.024]
[1722262684513,1.64286695,68987.0,68986.0,0.01]
[1722262684710,1.57915376,68987.0,68986.0,0.01]
[1722262685138,0.08475614,68987.0,68986.0,0.367056]
[1722262685338,0.0227455,68987.0,68986.0,0.2221]
[1722262685744,0.0227455,68987.0,68986.0,0.367056]
[1722262685945,0.0227455,68987.0,68986.0,0.2221]
[1722262686803,0.0227455,68987.0,68986.0,0.367056]
[1722262687126,0.0227455,68987.0,68986.0,0.2221]
[1722262687332,0.0227455,68987.0,68986.0,0.36519939]
[1722262687467,0.0227455,68987.0,68986.0,1.30759439]
[1722262687849,0.144924,69002.0,68991.0,0.140945]
[1722262687982,0.09876276,69001.0,68992.0,0.14309939]
[1722262688405,0.09876276,69000.0,68992.0,0.14309939]
[1722262688609,0.00970276,69003.0,68995.0,0.144937]
[1722262688823,0.00970276,69003.0,68996.0,0.144934]
[1722262688824,0.09876057,69002.0,68996.0,0.144934]
[1722262689029,0.09876057,69002.0,68993.0,0.289883]
[1722262689232,0.09876057,69002.0,68995.0,0.289874]
[1722262689431,0.09876057,69002.0,68996.0,0.144935]
[1722262689628,0.09876057,69002.0,68994.0,0.14309939]
[1722262690011,0.09876057,69002.0,68995.0,0.144937]
[1722262690214,0.09876057,69002.0,68995.0,0.01441964]
[1722262690598,0.09876057,69002.0,68995.0,0.15935664]
[1722262690799,0.09876057,69002.0,68995.0,0.01441964]
[1722262691197,0.09876057,69002.0,68997.0,0.144933]
[1722262691394,4e-05,69003.0,68998.0,0.28802839]
[1722262691606,4e-05,69003.0,68999.0,0.144929]
[1722262691815,4e-05,69003.0,68998.0,0.14309939]
[1722262692236,4e-05,69003.0,68998.0,0.28802939]
[1722262692438,4e-05,69003.0,68999.0,0.144929]
[1722262692670,4e-05,69003.0,69000.0,0.144927]
[1722262692671,0.09910041,69003.0,69000.0,0.144927]
[1722262692880,0.09906041,69002.0,69000.0,0.144927]
[1722262693083,4e-05,69003.0,69000.0,0.289854]
[1722262693443,0.02277703,69003.0,68998.0,0.14309939]
[1722262693578,4e-05,69003.0,69001.0,0.144924]
[1722262693964,4e-05,69003.0,69002.0,0.144923]
[1722262694172,4e-05,69003.0,68998.0,0.14309939]
[1722262694527,4e-05,69003.0,68999.0,0.144929]
[1722262694993,4e-05,69003.0,68998.0,0.14309939]
[1722262695232,0.289848,69002.0,68995.0,0.01441964]
[1722262695455,0.18462441,69003.0,68995.0,0.01441964]
[1722262695456,0.19484086,69001.0,68995.0,0.01441964]
[1722262695682,0.25796886,69000.0,68995.0,0.01441964]
[1722262695907,0.11304086,68999.0,68995.0,0.01441964]
[1722262696134,0.01267843,68998.0,68995.0,0.01741964]
[1722262696393,0.01267843,68997.0,68995.0,0.01741964]
[1722262696620,0.0818,69001.0,68995.0,0.01741964]
[1722262696823,0.1134403,69000.0,68995.0,0.01741964]
[1722262696950,0.02273874,68997.0,68995.0,0.01741964]
[1722262697151,0.02273874,68997.0,68996.0,0.144935]
[1722262697379,0.02273874,68997.0,68996.0,0.724677]
[1722262697584,0.02273874,68997.0,68996.0,0.86777639]
[1722262697943,0.001,68999.0,68998.0,0.434794]
[1722262698239,0.001,68999.0,68998.0,0.57789339]
[1722262698444,0.001,68999.0,68998.0,0.86775639]
[1722262698970,4e-05,69003.0,68998.0,0.43296239]
[1722262699172,4e-05,69003.0,69002.0,0.144923]
[1722262699442,4e-05,69003.0,69001.0,0.144924]
[1722262699635,4e-05,69003.0,68998.0,0.14309939]
[1722262699834,4e-05,69003.0,68999.0,0.289858]
[1722262700034,0.01355271,69003.0,69000.0,0.144927]
[1722262700191,4e-05,69003.0,69002.0,0.144923]
[1722262701254,0.01629459,69003.0,69002.0,0.144923]
[1722262701465,0.13924835,69003.0,69002.0,0.144923]
[1722262701677,0.13924982,69003.0,69002.0,0.144923]
[1722262701877,0.13924982,69003.0,68998.0,0.43295839]
[1722262702097,0.02361644,69003.0,69002.0,0.144923]
[1722262702231,0.03830795,69003.0,69001.0,0.144925]
[1722262702433,0.03830795,69003.0,68999.0,0.289858]
[1722262702434,0.02361644,69003.0,69002.0,0.144923]
[1722262702623,0.03862253,69003.0,69002.0,0.144923]
[1722262702823,0.01588609,69003.0,69002.0,0.434769]
[1722262703047,0.01588609,69003.0,69002.0,0.144923]
[1722262703406,0.01588609,69003.0,68998.0,0.14309939]
[1722262703407,0.11625409,69003.0,68998.0,0.005]
[1722262703682,0.11537067,69002.0,68998.0,0.005]
[1722262703819,0.00088,69003.0,68989.0,0.0665]
[1722262703820,0.220928,69000.0,68989.0,0.0665]
[1722262704022,0.11537067,68999.0,68995.0,0.006]
[1722262704243,0.11567747,68998.0,68995.0,0.006]
[1722262704479,0.11567747,68997.0,68995.0,0.006]
[1722262704681,0.01500609,68996.0,68995.0,0.006]
[1722262704907,0.01500609,68999.0,68995.0,0.006]
[1722262705095,0.1006738,68998.0,68995.0,0.006]
[1722262705246,0.01500609,68997.0,68995.0,0.006]
[1722262705655,0.11594078,68996.0,68995.0,0.006]
[1722262705855,0.01500609,68996.0,68995.0,0.006]
[1722262706148,0.01500609,68999.0,68994.0,0.144939]
[1722262706317,0.01500609,68999.0,68992.0,0.058084]
[1722262706318,0.11592618,68998.0,68995.0,0.144936]
[1722262706569,0.11592618,68997.0,68995.0,0.144936]
[1722262706778,0.01500609,68996.0,68995.0,0.144936]
[1722262706981,0.01500609,69002.0,68992.0,0.058084]
[1722262707189,0.11591667,69001.0,68995.0,0.164937]
[1722262707401,0.001,68996.0,68995.0,0.176937]
[1722262707609,0.01600609,68996.0,68995.0,0.176937]
[1722262707873,0.001,68996.0,68995.0,0.032]
[1722262708283,0.01729825,69001.0,68995.0,0.02]
[1722262708400,0.11830681,69000.0,68995.0,0.02]
[1722262708606,0.11830681,68999.0,68995.0,0.02]
[1722262708806,0.11830681,68998.0,68995.0,0.02]
[1722262709047,0.01729825,68997.0,68995.0,0.164937]
[1722262709397,0.01729825,68996.0,68995.0,0.02]
[1722262709980,0.01729825,68997.0,68995.0,0.02]
[1722262710166,0.01729825,68996.0,68995.0,0.02]
[1722262710331,0.01729825,69002.0,68995.0,0.168938]
[1722262710532,0.01729825,69001.0,68995.0,0.024]
[1722262710735,0.01042762,69003.0,68995.0,0.024]
[1722262710736,0.11870923,69000.0,68997.0,0.289866]
[1722262710931,0.01042762,69003.0,68997.0,0.289866]
[1722262710932,0.01729825,68999.0,68998.0,0.434794]
[1722262711135,0.00092,69003.0,68999.0,0.144928]
[1722262711337,0.00092,69003.0,69000.0,0.144927]
[1722262711338,0.12289459,69002.0,69000.0,0.144927]
[1722262711585,0.12289459,69001.0,69000.0,0.144927]
[1722262711785,0.02117495,69001.0,69000.0,0.144927]
[1722262712006,0.00092,69003.0,69002.0,0.144923]
[1722262712210,0.00092,69003.0,69002.0,0.17376602]
[1722262712415,0.00092,69003.0,69002.0,0.89655741]
[1722262712628,0.00092,69003.0,69002.0,1.18640341]
[1722262713646,0.00092,69003.0,69002.0,0.89655741]
[1722262714200,0.00092,69003.0,69002.0,1.18640341]
[1722262714460,0.00092,69003.0,69002.0,0.89655741]
[1722262715098,0.00092,69003.0,69002.0,1.20040341]
[1722262715491,0.00096,69003.0,69002.0,1.20040341]
[1722262716372,0.00096,69003.0,69002.0,1.34600341]
[1722262716520,0.00096,69003.0,69002.0,1.35700341]
[1722262717123,0.00096,69003.0,69002.0,1.34300341]
[1722262717416,0.00096,69003.0,69002.0,1.30316039]
[1722262717616,0.00096,69003.0,69002.0,1.31716039]
[1722262718179,0.00096,69003.0,69002.0,1.30316039]
[1722262718693,0.00096,69003.0,69002.0,1.60700639]
[1722262719349,0.00096,69003.0,69002.0,1.72100639]
[1722262719894,0.00096,69003.0,69002.0,1.70900639]
[1722262720321,0.02369201,69003.0,69002.0,1.74500639]
[1722262720518,0.02369201,69003.0,69002.0,1.75900639]
[1722262720901,0.02369201,69003.0,69002.0,2.07185239]
[1722262721238,0.02369201,69003.0,69002.0,1.76800639]
[1722262721357,0.02369201,69003.0,69002.0,1.78200639]
[1722262721562,0.00096,69003.0,69002.0,2.07185239]
[1722262721790,0.00096,69003.0,69002.0,1.78200639]
[1722262721987,0.00096,69003.0,69002.0,1.79600639]
[1722262722593,0.00096,69003.0,69002.0,1.43116039]
[1722262722808,0.00096,69003.0,69002.0,0.17109939]
[1722262723011,0.00096,69003.0,69002.0,0.462769]
[1722262723328,0.00096,69003.0,69002.0,0.17109939]
[1722262723643,0.00096,69003.0,69002.0,0.462769]
[1722262723882,0.00096,69003.0,69002.0,0.738615]
[1722262724089,0.00096,69003.0,69002.0,0.752615]
[1722262725150,0.00096,69003.0,69002.0,0.60586839]
[1722262725325,0.00096,69003.0,69002.0,0.89571439]
[1722262725936,0.00096,69003.0,69002.0,0.88171439]
[1722262726139,0.00096,69003.0,69002.0,0.86771439]
[1722262726360,0.00096,69003.0,69002.0,1.23346039]
[1722262726620,0.00096,69003.0,69002.0,1.30026039]
[1722262726754,0.00096,69003.0,69002.0,1.59010639]
[1722262726963,0.00096,69003.0,69002.0,1.94395239]
[1722262727206,0.00096,69003.0,69002.0,1.94595239]
[1722262727776,0.00096,69003.0,69002.0,2.14595239]
[1722262727976,0.00096,69003.0,69002.0,2.16895239]
[1722262728230,0.00096,69003.0,69002.0,2.46895239]
[1722262728601,0.00096,69003.0,69002.0,2.48295239]
[1722262728892,0.00096,69003.0,69002.0,2.02010639]
[1722262729080,0.02369191,69003.0,69002.0,2.02010639]
[1722262729297,0.02369191,69003.0,69002.0,2.05610639]
[1722262729494,0.00096,69003.0,69002.0,2.05610639]
[1722262729650,0.00096,69003.0,69002.0,2.25064994]
[1722262729847,0.00096,69003.0,69002.0,2.55449594]
[1722262730462,0.00817,69014.0,69013.0,1.755]
[1722262730661,0.00817,69014.0,69013.0,1.92694241]
[1722262731087,0.00817,69014.0,69013.0,1.92894241]
[1722262731541,0.00817,69014.0,69013.0,1.97694241]
[1722262731733,0.00817,69014.0,69013.0,2.20194241]
[1722262731967,0.00817,69014.0,69013.0,2.49174241]
[1722262732328,0.00817,69014.0,69013.0,2.50574241]
[1722262732894,0.03089905,69014.0,69013.0,2.50574241]
[1722262733631,0.03089905,69014.0,69013.0,1.75114241]
[1722262734196,0.00817,69014.0,69013.0,2.02694241]
[1722262734456,0.00817,69014.0,69013.0,1.75114241]
[1722262734700,0.00817,69014.0,69013.0,1.73714241]
[1722262735430,0.00817,69014.0,69013.0,1.75114241]
[1722262735686,0.00817,69014.0,69013.0,1.73714241]
[1722262735919,0.00817,69014.0,69013.0,1.70829939]
[1722262736171,0.00817,69014.0,69013.0,1.75829939]
[1722262736375,0.00817,69014.0,69013.0,2.17309939]
[1722262736599,0.00817,69014.0,69013.0,2.12309939]
[1722262736831,0.00817,69014.0,69013.0,2.17309939]
[1722262737097,0.0096629,69042.0,69039.0,0.144844]
[1722262737330,0.04038796,69041.0,69037.0,0.31854102]
[1722262737566,0.1566804,69043.0,69038.0,0.14309939]
[1722262737818,0.04201092,69042.0,69038.0,0.14309939]
[1722262738280,0.04201092,69042.0,69040.0,0.144843]
[1722262738284,0.04201092,69042.0,69038.0,0.14309939]
[1722262738285,0.04201092,69042.0,69041.0,0.144841]
[1722262738536,0.0940804,69043.0,69042.0,0.144839]
[1722262738774,0.0940804,69043.0,69042.0,0.28793839]
[1722262739250,0.0940804,69043.0,69042.0,0.57761639]
[1722262739476,0.0154804,69043.0,69042.0,0.57761639]
[1722262740201,0.0154804,69043.0,69042.0,0.35519939]
[1722262740442,0.0154804,69043.0,69037.0,0.02884302]
[1722262740678,0.0154804,69043.0,69039.0,0.144844]
[1722262740935,0.0154804,69043.0,69042.0,0.144839]
[1722262741169,0.0154804,69043.0,69042.0,0.57761639]
[1722262741396,0.03820448,69043.0,69042.0,0.87929439]
[1722262741674,0.0154804,69043.0,69042.0,0.58961639]
[1722262741903,0.01451944,69043.0,69042.0,0.144839]
[1722262742121,0.01451944,69043.0,69042.0,0.57761639]
[1722262742572,0.01451944,69043.0,69042.0,0.86729439]
[1722262742815,0.01451944,69043.0,69042.0,0.57761639]
[1722262743286,0.00451944,69043.0,69042.0,0.57761639]
[1722262743727,0.00451944,69043.0,69042.0,0.28793839]
[1722262743995,0.00451944,69043.0,69042.0,0.57761639]
[1722262744364,0.00451944,69043.0,69042.0,0.86729439]
[1722262744572,0.02724271,69043.0,69042.0,0.78971639]
[1722262744771,0.02724271,69043.0,69042.0,1.07939439]
[1722262745323,0.02724271,69043.0,69042.0,0.78971639]
[1722262745622,0.02724271,69043.0,69042.0,1.09339439]
[1722262745889,0.00451944,69043.0,69042.0,1.48307239]
[1722262746089,0.00451944,69043.0,69042.0,1.19339439]
[1722262746862,0.00451944,69043.0,69042.0,0.166649]
[1722262746863,0.14935644,69043.0,69042.0,0.166649]
[1722262747071,0.14935644,69043.0,69042.0,0.014]
[1722262747304,0.05383173,69043.0,69042.0,0.014]
[1722262747743,0.00451944,69043.0,69039.0,0.00967356]
[1722262747961,0.00451944,69043.0,69042.0,0.014]
[1722262748222,0.00451944,69043.0,69042.0,0.15709939]
[1722262748446,0.00451944,69043.0,69042.0,0.28793839]
[1722262748672,0.00451944,69043.0,69042.0,0.28949259]
[1722262748899,0.00451944,69043.0,69042.0,0.30349259]
[1722262749115,0.00451944,69043.0,69042.0,0.16909939]
[1722262749342,0.00451944,69043.0,69042.0,0.15509939]
[1722262749829,0.00451944,69043.0,69042.0,0.28469939]
[1722262750056,0.00451944,69043.0,69042.0,0.93131639]
[1722262750286,0.00451944,69043.0,69042.0,0.14309939]
[1722262750551,0.00451944,69043.0,69042.0,0.74487739]
[1722262750743,0.00451944,69043.0,69042.0,1.17939439]
[1722262750968,0.00451944,69043.0,69042.0,1.46907239]
[1722262751892,0.00451944,69043.0,69042.0,1.48307239]
[1722262752170,0.00451944,69043.0,69042.0,1.20739439]
[1722262752400,0.00451944,69043.0,69042.0,1.46907239]
[1722262752634,0.00451944,69043.0,69042.0,1.48307239]
[1722262752895,0.02724059,69043.0,69042.0,1.49707239]
[1722262753136,0.02724059,69043.0,69042.0,1.48307239]
[1722262753462,0.02724059,69043.0,69042.0,1.46907239]
[1722262753607,0.02724059,69043.0,69042.0,1.56907239]
[1722262753833,0.02724059,69043.0,69042.0,1.58462659]
[1722262753834,0.00451944,69043.0,69042.0,1.58462659]
[1722262754070,0.00451944,69043.0,69042.0,2.18375039]
[1722262754292,0.00817,69049.0,69048.0,0.946579]
[1722262754533,0.00817,69049.0,69048.0,2.22263739]
[1722262755510,0.00817,69056.0,69055.0,0.494812]
[1722262755769,0.04243109,69093.0,69055.0,0.494812]
[1722262755770,0.0648,69095.0,69059.0,0.58441]
[1722262755983,0.07154355,69089.0,69065.0,1.225637]
[1722262756202,0.0648,69078.0,69065.0,1.49757941]
[1722262756857,0.0648,69078.0,69065.0,1.21616741]
[1722262757079,0.03087203,69066.0,69065.0,0.92658541]
[1722262757360,0.03087203,69066.0,69065.0,1.21616741]
[1722262757796,0.03087203,69066.0,69065.0,1.50574941]
[1722262758008,0.03087203,69066.0,69065.0,1.21616741]
[1722262758260,0.00816,69066.0,69065.0,1.21616741]
[1722262758960,0.00816,69066.0,69065.0,0.63700341]
[1722262759187,0.00816,69066.0,69065.0,0.53700341]
[1722262759414,0.00816,69066.0,69065.0,0.82658541]
[1722262759632,0.00816,69066.0,69065.0,1.11616741]
[1722262760342,0.00816,69066.0,69065.0,0.83626073]
[1722262760833,0.00816,69066.0,69065.0,0.16094471]
[1722262761068,0.00816,69066.0,69053.0,0.0645]
[1722262761069,0.434398,69061.0,69060.0,0.0015542]
[1722262761364,0.434398,69061.0,69048.0,0.42926131]
[1722262761365,0.15552011,69061.0,69048.0,0.42926131]
[1722262761571,0.07154355,69058.0,69042.0,0.014]
[1722262761828,0.15552011,69057.0,69049.0,0.00817]
[1722262762058,1.078057,69050.0,69049.0,0.00817]
[1722262762282,0.1995858,69050.0,69035.0,0.47742658]
[1722262762561,0.144832,69046.0,69036.0,0.058047]
[1722262762802,0.289679,69042.0,69036.0,0.058047]
[1722262763054,0.15557327,69041.0,69036.0,0.058047]
[1722262763271,0.435546,69050.0,69040.0,0.289685]
[1722262763272,0.1459,69050.0,69040.0,0.289685]
[1722262763492,0.1450792,69049.0,69040.0,0.14309939]
[1722262763712,0.1450792,69048.0,69041.0,0.144841]
[1722262763930,0.1450792,69047.0,69040.0,0.14309939]
[1722262764175,0.435545,69050.0,69040.0,0.14309939]
[1722262764176,0.14541108,69046.0,69040.0,0.14309939]
[1722262764388,0.435545,69050.0,69040.0,0.14309939]
[1722262764389,0.14541108,69045.0,69040.0,0.14309939]
[1722262764607,0.1459,69050.0,69040.0,0.14309939]
[1722262764839,0.04746363,69049.0,69040.0,0.14309939]
[1722262765131,0.0227236,69044.0,69040.0,0.28794239]
[1722262765386,0.0227236,69044.0,69040.0,0.14309939]
[1722262765602,0.0227236,69044.0,69043.0,0.646611]
[1722262765836,0.0227236,69044.0,69043.0,0.78971039]
[1722262766340,0.0227236,69044.0,69043.0,1.07938439]
[1722262766562,0.0664,69056.0,69044.0,0.289667]
[1722262766799,0.290439,69061.0,69051.0,0.289637]
[1722262766800,0.00084,69061.0,69051.0,0.289637]
[1722262767020,0.144804,69059.0,69052.0,0.2121]
[1722262767266,0.144804,69059.0,69047.0,0.02884302]
[1722262767267,0.15095379,69058.0,69047.0,0.02884302]
[1722262767493,0.289607,69059.0,69048.0,0.014]
[1722262767494,0.144812,69055.0,69048.0,0.014]
[1722262767738,0.15095379,69054.0,69048.0,0.014]
[1722262767956,0.144824,69049.0,69048.0,0.014]
[1722262768177,0.29577779,69049.0,69048.0,0.014]
[1722262768405,0.66842679,69049.0,69048.0,0.014]
[1722262768632,0.23425223,69049.0,69047.0,0.02884302]
[1722262768883,0.29607823,69048.0,69047.0,0.02884302]
[1722262769112,0.15029111,69048.0,69047.0,0.02884302]
[1722262769348,0.29511711,69048.0,69047.0,0.02884302]
[1722262769581,0.35551711,69048.0,69047.0,0.02884302]
[1722262770052,0.64517011,69048.0,69047.0,0.02884302]
[1722262770282,0.21069111,69048.0,69047.0,0.02884302]
[1722262770754,0.15029111,69048.0,69047.0,0.02884302]
[1722262771001,0.58477011,69048.0,69047.0,0.02884302]
[1722262771239,0.87442311,69048.0,69047.0,0.02884302]
[1722262771503,0.58477011,69048.0,69047.0,0.02884302]
[1722262771730,0.58453432,69048.0,69047.0,0.02884302]
[1722262772196,0.15005532,69048.0,69047.0,0.02884302]
[1722262772425,0.19391224,69048.0,69047.0,0.02884302]
[1722262772652,0.29516443,69048.0,69047.0,0.02884302]
[1722262772895,0.15033843,69048.0,69047.0,0.02884302]
[1722262773135,0.04908624,69048.0,69047.0,0.02884302]
[1722262773383,0.2951439,69048.0,69047.0,0.02884302]
[1722262773854,0.17303992,69048.0,69047.0,0.02884302]
[1722262774084,0.1503179,69048.0,69047.0,0.02884302]
[1722262774313,0.1503179,69048.0,69042.0,0.000924]
[1722262774552,0.1503179,69047.0,69043.0,0.0015542]
[1722262774800,0.04908624,69046.0,69043.0,0.0015542]
[1722262775034,0.227825,69049.0,69043.0,0.0015542]
[1722262775035,0.083,69049.0,69043.0,0.0015542]
[1722262775237,0.144829,69047.0,69043.0,0.0015542]
[1722262775406,0.03934547,69048.0,69042.0,0.02976702]
[1722262775634,0.03934547,69048.0,69043.0,0.0015542]
[1722262775879,0.18417247,69048.0,69043.0,0.0015542]
[1722262776058,0.03934547,69047.0,69043.0,0.0015542]
[1722262776263,0.03934547,69046.0,69043.0,0.0015542]
[1722262776525,0.0609,69053.0,69043.0,0.0015542]
[1722262776707,0.40860686,69058.0,69045.0,0.144832]
[1722262776708,0.13676743,69052.0,69045.0,0.144832]
[1722262776913,0.03558053,69051.0,69046.0,0.0015542]
[1722262777115,0.02272235,69051.0,69046.0,0.0015542]
[1722262777370,0.02272235,69051.0,69044.0,0.0015542]
[1722262777571,0.10100131,69050.0,69043.0,0.0015542]
[1722262777820,0.02272235,69051.0,69043.0,0.1463892]
[1722262778022,0.02272235,69051.0,69047.0,0.01]
[1722262778223,0.02272235,69051.0,69048.0,0.0015542]
[1722262778572,0.15451153,69055.0,69048.0,0.0015542]
[1722262778573,0.29932253,69055.0,69048.0,0.0015542]
[1722262778772,0.10071862,69054.0,69048.0,0.0015542]
[1722262778973,0.10071862,69054.0,69043.0,0.0095542]
[1722262779154,0.10071862,69054.0,69044.0,0.144834]
[1722262779360,0.10071862,69054.0,69045.0,0.0015542]
[1722262779754,0.144818,69052.0,69044.0,0.0015542]
[1722262779978,0.10071862,69051.0,69044.0,0.0015542]
[1722262780379,0.00969853,69055.0,69044.0,0.0015542]
[1722262780380,0.144816,69053.0,69044.0,0.0015542]
[1722262780590,0.00969853,69055.0,69045.0,0.1433]
[1722262780817,0.10062226,69054.0,69046.0,0.0015542]
[1722262781069,0.144819,69052.0,69046.0,0.0015542]
[1722262781247,0.10078751,69051.0,69043.0,0.0015542]
[1722262781391,0.24560751,69051.0,69043.0,0.0015542]
[1722262781607,0.289621,69056.0,69043.0,0.0015542]
[1722262781803,0.144819,69052.0,69043.0,0.1463902]
[1722262782165,0.144819,69052.0,69043.0,0.0015542]
[1722262782365,0.144803,69059.0,69044.0,0.28309939]
[1722262782586,0.10089192,69057.0,69050.0,0.144821]
[1722262782788,0.10089192,69057.0,69051.0,0.0015542]
[1722262783137,0.02272037,69056.0,69050.0,0.0015542]
[1722262783344,0.10089192,69055.0,69050.0,0.0015542]
[1722262783708,0.10089192,69054.0,69051.0,0.14482]
[1722262783909,0.00952869,69058.0,69052.0,0.0015542]
[1722262784226,0.10088693,69057.0,69052.0,0.0015542]
[1722262784344,0.10088693,69057.0,69050.0,0.144822]
[1722262784345,0.10088693,69056.0,69051.0,0.0015542]
[1722262784541,0.10088693,69055.0,69051.0,0.0015542]
[1722262784784,0.10087975,69054.0,69051.0,0.0015542]
[1722262784939,0.14481,69056.0,69049.0,0.02884302]
[1722262785144,0.1010738,69055.0,69050.0,0.00112546]
[1722262785362,0.1010738,69054.0,69049.0,0.02884302]
[1722262785568,0.144808,69057.0,69049.0,0.02884302]
[1722262785765,0.10107287,69056.0,69050.0,0.00110844]
[1722262785966,0.10107287,69056.0,69049.0,0.02884302]
[1722262786171,0.02272117,69055.0,69052.0,0.144817]
[1722262786457,0.24588687,69054.0,69049.0,0.02884302]
[1722262786636,0.10107287,69053.0,69049.0,0.03984302]
[1722262786891,0.02272117,69055.0,69049.0,0.03984302]
[1722262787090,0.10112665,69054.0,69049.0,0.17366702]
[1722262787242,0.10006145,69053.0,69049.0,0.17366702]
[1722262787417,0.10006145,69052.0,69049.0,0.17366702]
[1722262787618,0.144806,69058.0,69049.0,0.17366702]
[1722262787849,0.144812,69055.0,69050.0,0.0015542]
[1722262788055,0.10006406,69054.0,69049.0,0.02884302]
[1722262788257,0.24488006,69053.0,69049.0,0.02884302]
[1722262788457,0.10006406,69052.0,69049.0,0.02884302]
[1722262788832,0.10006406,69051.0,69049.0,0.02884302]
[1722262789157,0.289625,69055.0,69049.0,0.02884302]
[1722262789158,0.10006406,69050.0,69049.0,0.02884302]
[1722262789503,0.10006406,69050.0,69044.0,0.28167702]
[1722262789710,0.289625,69055.0,69044.0,0.13684302]
[1722262789711,0.10021892,69049.0,69044.0,0.13684302]
[1722262789901,0.10021892,69048.0,69044.0,0.13684302]
[1722262790103,0.144824,69049.0,69044.0,0.13684302]
[1722262790396,0.02272215,69048.0,69042.0,0.000924]
[1722262790520,0.289662,69046.0,69042.0,0.000924]
[1722262790726,0.10035475,69045.0,69042.0,0.000924]
[1722262790966,0.144837,69043.0,69042.0,0.000924]
[1722262791285,0.10035475,69043.0,69042.0,0.000924]
[1722262791439,0.53486575,69043.0,69042.0,0.000924]
[1722262792263,0.24519175,69043.0,69042.0,0.000924]
[1722262792468,0.53486575,69043.0,69042.0,0.000924]
[1722262792858,0.24519175,69043.0,69042.0,0.000924]
[1722262793381,0.144837,69043.0,69042.0,0.000924]
[1722262793577,0.24455885,69043.0,69042.0,0.000924]
[1722262793776,0.53423285,69043.0,69042.0,0.000924]
[1722262794002,0.09972185,69043.0,69042.0,0.000924]
[1722262794424,0.09972185,69043.0,69042.0,0.014924]
[1722262794634,0.02372215,69048.0,69042.0,0.014924]
[1722262794635,0.09972185,69047.0,69042.0,0.093124]
[1722262794974,0.09972185,69046.0,69044.0,0.144835]
[1722262795103,0.02372215,69048.0,69045.0,0.0015542]
[1722262795303,0.10016203,69047.0,69046.0,0.0663]
[1722262795520,0.16193406,69047.0,69046.0,0.0663]
[1722262795718,0.06177203,69047.0,69046.0,0.0663]
[1722262795906,0.16194803,69047.0,69046.0,0.0663]
[1722262796563,0.16194803,69047.0,69042.0,0.093124]
[1722262796799,0.19479719,69046.0,69042.0,0.237962]
[1722262796995,0.13302516,69045.0,69043.0,0.00132691]
[1722262797173,0.03284916,69044.0,69042.0,0.237962]
[1722262797382,0.13305304,69044.0,69042.0,0.237962]
[1722262797624,0.02272215,69048.0,69042.0,0.237962]
[1722262797625,0.13305304,69043.0,69042.0,0.237962]
[1722262798155,0.13305304,69043.0,69042.0,0.2387938]
[1722262798358,0.13405304,69043.0,69042.0,0.249962]
[1722262798571,0.13405304,69043.0,69042.0,0.105124]
[1722262799236,0.13405304,69043.0,69042.0,0.026924]
[1722262799462,0.19609334,69043.0,69042.0,0.026924]
[1722262799625,0.19609334,69043.0,69042.0,0.012924]
[1722262799790,0.1959977,69043.0,69042.0,0.012924]
[1722262799996,0.19599612,69043.0,69042.0,0.021924]
[1722262800838,0.19599612,69043.0,69042.0,0.447441]
[1722262801213,0.19599612,69043.0,69042.0,0.461441]
[1722262801393,0.19599612,69043.0,69042.0,0.026924]
[1722262802219,0.19566634,69043.0,69042.0,0.60454039]
[1722262802819,0.19566634,69043.0,69042.0,0.31486239]
[1722262803069,0.19566634,69043.0,69042.0,0.89421839]
[1722262804681,0.15659436,69043.0,69042.0,1.18389639]
[1722262804882,0.15659436,69043.0,69042.0,1.53699639]
[1722262805146,0.03384916,69043.0,69042.0,1.53699639]
[1722262805527,0.001,69043.0,69042.0,1.34731839]
[1722262806310,0.03495308,69043.0,69042.0,0.602441]
[1722262806511,0.03461768,69043.0,69042.0,1.03521839]
[1722262806962,0.03461768,69043.0,69042.0,0.74554039]
[1722262807161,0.03461768,69043.0,69042.0,0.026924]
[1722262807540,0.07716668,69043.0,69042.0,0.026924]
[1722262807700,0.03461768,69043.0,69042.0,0.026924]
[1722262807900,0.34945931,69043.0,69042.0,0.026924]
[1722262808109,0.30174699,69043.0,69042.0,0.026924]
[1722262808319,0.30317541,69043.0,69042.0,0.026924]
[1722262808483,0.21799992,69043.0,69042.0,0.026924]
[1722262808679,0.28188539,69043.0,69042.0,0.026924]
[1722262808887,0.25916129,69043.0,69042.0,0.026924]
[1722262809171,0.19527615,69043.0,69042.0,0.026924]
[1722262809404,0.1337461,69043.0,69042.0,0.026924]
[1722262809609,0.1337461,69043.0,69042.0,0.0284782]
[1722262809731,0.1337461,69043.0,69042.0,0.026924]
[1722262809932,0.03461768,69043.0,69042.0,0.171763]
[1722262810134,0.03461768,69043.0,69042.0,0.461441]
[1722262810603,0.03461768,69043.0,69042.0,1.03491839]
[1722262810835,0.02893765,69043.0,69042.0,1.24701839]
[1722262811014,0.001,69043.0,69042.0,1.24701839]
[1722262811346,0.001,69043.0,69042.0,1.53669639]
[1722262812399,0.001,69043.0,69042.0,1.63669639]
[1722262812727,0.02372233,69043.0,69042.0,1.63669639]
[1722262812886,0.02372233,69043.0,69042.0,1.92637439]
[1722262813299,0.02372233,69043.0,69042.0,2.02637439]
[1722262813496,0.02372233,69043.0,69042.0,2.36805239]
[1722262813703,4e-05,69047.0,69042.0,2.36805239]
[1722262813704,4e-05,69047.0,69046.0,1.653474]
[1722262813909,4e-05,69047.0,69046.0,2.04377339]
[1722262814118,4e-05,69047.0,69046.0,2.33343439]
[1722262814487,0.00084,69054.0,69053.0,1.179912]
[1722262814661,0.00084,69054.0,69053.0,2.00684339]
[1722262815074,0.02355699,69054.0,69053.0,2.00684339]
[1722262815274,0.02355699,69054.0,69053.0,2.35684339]
[1722262815723,0.02355699,69054.0,69053.0,2.64647539]
[1722262815929,0.02355699,69054.0,69053.0,2.67147539]
[1722262816133,0.00084,69061.0,69053.0,2.67147539]
[1722262816134,0.00084,69061.0,69060.0,1.403213]
[1722262816273,0.00084,69061.0,69060.0,1.99801239]
[1722262816474,0.00084,69061.0,69060.0,2.35001239]
[1722262816971,0.00816,69066.0,69065.0,1.441119]